bitfinex-derivatives/quotes_BTCF0:USTF0_20250921
["timestamp","ask_amount","ask_price","bid_price","bid_amount"]
[1758442270100,4.99097982,115800.0,115790.0,0.87965274]
[1758442272701,4.99097982,115800.0,115790.0,0.007]
[1758442272907,5.41628119,115800.0,115790.0,0.007]
[1758442274303,4.14037708,115800.0,115790.0,0.007]
[1758442274506,5.41628119,115800.0,115790.0,0.007]
[1758442277301,5.66628119,115800.0,115790.0,0.007]
[1758442280109,5.24132456,115800.0,115790.0,0.007]
[1758442286414,5.60212456,115800.0,115790.0,0.007]
[1758442286811,5.35212456,115800.0,115790.0,0.007]
[1758442295924,4.63052456,115800.0,115790.0,0.007]
[1758442296221,5.35212456,115800.0,115790.0,0.007]
[1758442296422,5.35196198,115800.0,115790.0,0.007]
[1758442298025,5.35196198,115800.0,115790.0,1e-07]
[1758442299922,0.03514,115780.0,115770.0,0.00676642]
[1758442300225,2.49465325,115780.0,115770.0,0.00676642]
[1758442300625,2.56321814,115780.0,115770.0,0.00676642]
[1758442301227,2.56321814,115780.0,115770.0,0.01176642]
[1758442302126,1.78277814,115780.0,115770.0,0.01176642]
[1758442302326,2.56309814,115780.0,115770.0,0.01176642]
[1758442302527,2.56409814,115780.0,115770.0,0.01976642]
[1758442311639,1.71315066,115780.0,115770.0,0.01976642]
[1758442311836,2.56409814,115780.0,115770.0,0.01976642]
[1758442316239,1.78377814,115780.0,115770.0,0.01976642]
[1758442316441,2.56393814,115780.0,115770.0,0.01976642]
[1758442320842,1.71299066,115780.0,115770.0,0.01976642]
[1758442321043,2.56381814,115780.0,115770.0,0.01976642]
[1758442323749,1.71287066,115780.0,115770.0,0.01976642]
[1758442323948,2.56381814,115780.0,115770.0,0.01976642]
[1758442326350,0.93283066,115780.0,115770.0,0.01976642]
[1758442326651,2.56397814,115780.0,115770.0,0.01976642]
[1758442328549,2.28032898,115780.0,115770.0,0.01976642]
[1758442328754,1.71303066,115780.0,115770.0,0.01976642]
[1758442329055,2.56397814,115780.0,115770.0,0.01976642]
[1758442341760,2.98974946,115780.0,115770.0,0.01976642]
[1758442344763,2.98970946,115780.0,115770.0,0.01976642]
[1758442347263,2.20962946,115780.0,115770.0,0.01976642]
[1758442347464,2.98962946,115780.0,115770.0,0.01976642]
[1758442348667,2.20962946,115780.0,115770.0,0.01976642]
[1758442348863,2.98962946,115780.0,115770.0,0.01976642]
[1758442350068,2.98962946,115780.0,115770.0,0.03709035]
[1758442353971,2.20962946,115780.0,115770.0,0.03709035]
[1758442354169,2.98950946,115780.0,115770.0,0.03709035]
[1758442362383,2.98850946,115780.0,115770.0,0.03409035]
[1758442368874,3.01439895,115780.0,115770.0,0.03409035]
[1758442369085,2.98850946,115780.0,115770.0,0.03409035]
[1758442369288,3.01439905,115780.0,115770.0,0.03409035]
[1758442370389,2.98850946,115780.0,115770.0,0.03409035]
[1758442371088,3.01439132,115780.0,115770.0,0.03409035]
[1758442371284,2.98850946,115780.0,115770.0,0.03409035]
[1758442372085,3.01438917,115780.0,115770.0,0.03409035]
[1758442372388,3.01438917,115780.0,115770.0,0.02909035]
[1758442373890,2.98850946,115780.0,115770.0,0.00177725]
[1758442376792,3.01438217,115780.0,115770.0,0.00177725]
[1758442377290,1.73758337,115780.0,115770.0,0.00177725]
[1758442377494,3.01438217,115780.0,115770.0,0.00177725]
[1758442384599,0.1207374,115770.0,115760.0,0.0001]
[1758442384801,0.1207449,115760.0,115750.0,0.46472342]
[1758442384996,2.5385037,115760.0,115750.0,0.46462342]
[1758442387803,2.5385037,115760.0,115750.0,0.47362342]
[1758442388700,2.1129041,115760.0,115750.0,0.47362342]
[1758442389403,2.1129041,115760.0,115750.0,0.04802382]
[1758442389599,2.1129041,115760.0,115750.0,0.47362342]
[1758442392107,2.5385037,115760.0,115750.0,0.47362342]
[1758442393004,2.1129041,115760.0,115750.0,0.47362342]
[1758442395409,1.2617049,115760.0,115750.0,0.47362342]
[1758442395609,2.1129041,115760.0,115750.0,0.47362342]
[1758442398308,2.1129041,115760.0,115750.0,0.04802382]
[1758442398508,2.1129041,115760.0,115750.0,0.47362342]
[1758442400811,2.5385037,115760.0,115750.0,0.47362342]
[1758442401208,2.5385037,115760.0,115750.0,0.4285996]
[1758442401413,0.0998771,115730.0,115720.0,1.2918285]
[1758442401616,1.2470767,115730.0,115720.0,1.96477465]
[1758442402518,1.2470767,115730.0,115720.0,2.39037425]
[1758442403210,1.2470767,115730.0,115720.0,2.39637425]
[1758442403818,1.1053097,115730.0,115720.0,1.68724065]
[1758442404015,1.1063097,115730.0,115720.0,1.69724065]
[1758442404714,0.8224771,115730.0,115720.0,1.69724065]
[1758442404921,1.1063097,115730.0,115720.0,1.69724065]
[1758442406314,1.1063097,115730.0,115720.0,1.70407775]
[1758442406315,0.8224771,115730.0,115720.0,1.70407775]
[1758442407922,0.8446571,115730.0,115720.0,0.92419775]
[1758442413934,0.8446571,115730.0,115720.0,0.59969545]
[1758442414234,0.8446571,115730.0,115720.0,0.92419775]
[1758442416636,0.8224771,115730.0,115720.0,0.92419775]
[1758442417339,0.8224771,115730.0,115720.0,0.59969545]
[1758442417340,0.8469171,115730.0,115720.0,0.59969545]
[1758442417539,0.8469171,115730.0,115720.0,0.92419775]
[1758442418239,0.8469171,115730.0,115720.0,0.59969545]
[1758442418539,0.8469171,115730.0,115720.0,0.92419775]
[1758442419339,0.8469171,115730.0,115720.0,0.67419775]
[1758442431648,0.8469171,115730.0,115720.0,0.34969545]
[1758442431848,0.8469171,115730.0,115720.0,0.67419775]
[1758442432543,0.8469171,115730.0,115720.0,0.34969545]
[1758442441761,1.6266771,115730.0,115720.0,0.34969545]
[1758442442857,1.6266771,115730.0,115720.0,0.67419775]
[1758442444962,1.6266771,115730.0,115720.0,0.34969545]
[1758442445961,1.9511794,115730.0,115720.0,0.03315842]
[1758442452569,2.2011794,115730.0,115720.0,0.03315842]
[1758442454676,2.2011794,115730.0,115720.0,0.00962902]
[1758442462884,1.4795794,115730.0,115720.0,0.00962902]
[1758442463084,2.2011794,115730.0,115720.0,0.00962902]
[1758442463282,2.2012194,115730.0,115720.0,0.00962902]
[1758442465793,2.2013071,115730.0,115720.0,0.00962902]
[1758442466093,2.164462,115730.0,115720.0,0.00962902]
[1758442470096,1.8767171,115730.0,115720.0,0.00962902]
[1758442470297,2.164462,115730.0,115720.0,0.00962902]
[1758442473001,2.164462,115730.0,115720.0,0.38372832]
[1758442473500,2.164462,115730.0,115720.0,0.29737392]
[1758442474802,2.164462,115730.0,115720.0,0.00962902]
[1758442475000,2.164462,115730.0,115720.0,0.29737392]
[1758442479393,1.914462,115730.0,115720.0,0.29737392]
[1758442480501,1.6267171,115730.0,115720.0,0.29737392]
[1758442480702,1.914462,115730.0,115720.0,0.29737392]
[1758442483206,1.6267171,115730.0,115720.0,0.29737392]
[1758442483404,1.914462,115730.0,115720.0,0.29737392]
[1758442491022,1.914462,115730.0,115720.0,0.00962902]
[1758442491317,1.914462,115730.0,115720.0,0.29737392]
[1758442494723,1.914462,115730.0,115720.0,0.00962902]
[1758442495021,1.914462,115730.0,115720.0,0.29737392]
[1758442495418,1.134662,115730.0,115720.0,0.29737392]
[1758442495621,1.914422,115730.0,115720.0,0.29737392]
[1758442500929,1.914422,115730.0,115720.0,0.00962902]
[1758442501224,1.914422,115730.0,115720.0,0.29737392]
[1758442502224,1.6266771,115730.0,115720.0,0.63372832]
[1758442504521,0.8469171,115730.0,115720.0,0.63372832]
[1758442504716,1.6266371,115730.0,115720.0,0.63372832]
[1758442511529,1.6266371,115730.0,115720.0,0.74249166]
[1758442515134,1.6246471,115730.0,115720.0,0.74249166]
[1758442515637,1.6229171,115730.0,115720.0,0.74249166]
[1758442516038,1.6228171,115730.0,115720.0,0.74249166]
[1758442516931,1.6223771,115730.0,115720.0,0.74249166]
[1758442517734,1.6213871,115730.0,115720.0,0.74249166]
[1758442517931,1.6213471,115730.0,115720.0,0.49249166]
[1758442518132,0.76057,115730.0,115720.0,0.63372832]
[1758442518324,1.02106,115730.0,115720.0,0.63372832]
[1758442518928,1.02106,115730.0,115720.0,0.74249166]
[1758442519137,1.0346,115730.0,115720.0,0.74249166]
[1758442519337,1.05634,115730.0,115720.0,0.74249166]
[1758442519533,1.1426869,115730.0,115720.0,0.74249166]
[1758442521631,1.1426869,115730.0,115720.0,0.63372832]
[1758442522030,0.27666,115730.0,115720.0,0.63372832]
[1758442522230,1.05634,115730.0,115720.0,0.63372832]
[1758442525834,1.142687,115730.0,115720.0,0.63359612]
[1758442526138,1.142687,115730.0,115720.0,0.67042454]
[1758442527538,1.262107,115730.0,115720.0,0.67042454]
[1758442533240,1.262107,115730.0,115720.0,2.17042454]
[1758442535539,1.262107,115730.0,115720.0,2.27908158]
[1758442539440,1.262107,115730.0,115720.0,2.02908158]
[1758442547850,1.262107,115730.0,115720.0,1.92042454]
[1758442548943,1.262107,115730.0,115720.0,2.07578264]
[1758442549251,0.482427,115730.0,115720.0,2.07578264]
[1758442549450,1.262027,115730.0,115720.0,2.07578264]
[1758442549654,1.262027,115730.0,115720.0,1.92042454]
[1758442550559,1.262027,115730.0,115720.0,2.02920707]
[1758442557659,1.262027,115730.0,115720.0,1.92042454]
[1758442563464,1.262027,115730.0,115720.0,1.59598342]
[1758442563761,1.262027,115730.0,115720.0,1.92042454]
[1758442574170,1.262027,115730.0,115720.0,1.59598342]
[1758442574576,1.262027,115730.0,115720.0,1.92042454]
[1758442574873,1.262027,115730.0,115720.0,1.83407014]
[1758442575374,1.262027,115730.0,115720.0,1.92042454]
[1758442576073,1.262027,115730.0,115720.0,1.83407014]
[1758442576474,1.262027,115730.0,115720.0,1.8517273]
[1758442581381,1.262027,115730.0,115720.0,1.9380817]
[1758442587794,1.262027,115730.0,115720.0,1.93814551]
[1758442588188,1.262027,115730.0,115720.0,1.9013098]
[1758442590395,0.901227,115730.0,115720.0,1.9013098]
[1758442590694,1.262027,115730.0,115720.0,1.9013098]
[1758442593296,0.901227,115730.0,115720.0,1.9013098]
[1758442593495,1.262027,115730.0,115720.0,0.4013098]
[1758442593895,0.901227,115730.0,115720.0,1.9013098]
[1758442594096,1.262027,115730.0,115720.0,1.9013098]
[1758442594593,0.901227,115730.0,115720.0,1.9013098]
[1758442594794,1.262027,115730.0,115720.0,1.9013098]
[1758442598705,1.262027,115730.0,115720.0,2.01009217]
[1758442598997,1.262027,115730.0,115720.0,1.9013098]
[1758442599592,0.901227,115730.0,115720.0,1.9013098]
[1758442599800,1.262027,115730.0,115720.0,1.9013098]
[1758442614011,1.262027,115730.0,115720.0,1.61364058]
[1758442614207,1.262027,115730.0,115720.0,1.9013098]
[1758442617518,1.262027,115730.0,115720.0,1.61364058]
[1758442617813,1.262027,115730.0,115720.0,1.9013098]
[1758442626123,0.482427,115730.0,115720.0,1.9013098]
[1758442626322,1.261947,115730.0,115720.0,1.9013098]
[1758442637129,0.482427,115730.0,115720.0,1.9013098]
[1758442637329,1.261947,115730.0,115720.0,1.9013098]
[1758442640328,0.901147,115730.0,115720.0,1.9013098]
[1758442640631,1.261947,115730.0,115720.0,1.9013098]
[1758442646043,1.261947,115730.0,115720.0,1.52728618]
[1758442646235,1.261947,115730.0,115720.0,1.8149554]
[1758442649039,1.261947,115730.0,115720.0,1.52728618]
[1758442649228,1.261947,115730.0,115720.0,1.8149554]
[1758442649743,1.261947,115730.0,115720.0,1.81495003]
[1758442650044,1.261947,115730.0,115720.0,1.85178502]
[1758442652638,0.901147,115730.0,115720.0,1.85178502]
[1758442652932,1.261947,115730.0,115720.0,1.85178502]
[1758442654243,1.261947,115730.0,115720.0,0.35178502]
[1758442654546,1.261947,115730.0,115720.0,1.85178502]
[1758442654737,1.261947,115730.0,115720.0,1.93813962]
[1758442656344,0.901147,115730.0,115720.0,1.93813962]
[1758442656547,1.261947,115730.0,115720.0,1.93813962]
[1758442657548,1.261947,115730.0,115720.0,1.52728618]
[1758442657747,1.261947,115730.0,115720.0,1.85178502]
[1758442660936,0.901147,115730.0,115720.0,1.85178502]
[1758442661141,1.261947,115730.0,115720.0,1.85178502]
[1758442664454,0.901147,115730.0,115720.0,1.85178502]
[1758442664657,1.261947,115730.0,115720.0,1.85178502]
[1758442667458,0.901147,115730.0,115720.0,1.85178502]
[1758442667659,1.261947,115730.0,115720.0,1.85178502]
[1758442684088,1.261947,115730.0,115720.0,1.93814072]
[1758442685280,0.482427,115730.0,115720.0,1.93814062]
[1758442685484,1.261867,115730.0,115720.0,1.93814062]
[1758442686080,1.261867,115730.0,115720.0,2.04693477]
[1758442686682,0.482427,115730.0,115720.0,2.04693477]
[1758442686880,1.261867,115730.0,115720.0,2.04693477]
[1758442687378,1.261867,115730.0,115720.0,1.93814062]
[1758442689482,0.482427,115730.0,115720.0,1.93814062]
[1758442689683,1.261867,115730.0,115720.0,1.93814062]
[1758442692885,1.261867,115730.0,115720.0,2.09349872]
[1758442693587,0.901067,115730.0,115720.0,2.09349872]
[1758442693787,1.261867,115730.0,115720.0,2.09349872]
[1758442697690,1.261867,115730.0,115720.0,1.93814062]
[1758442698992,1.261867,115730.0,115720.0,1.93786017]
[1758442699889,0.482427,115730.0,115720.0,1.93786017]
[1758442703192,0.482427,115730.0,115720.0,2.09321827]
[1758442704392,0.39608,115730.0,115720.0,2.09321827]
[1758442707193,0.39608,115730.0,115720.0,1.93786017]
[1758442709693,0.39608,115730.0,115720.0,1.61336133]
[1758442709888,0.39608,115730.0,115720.0,1.93786017]
[1758442711799,0.39608,115730.0,115720.0,1.93783119]
[1758442712105,0.39608,115730.0,115720.0,1.90099964]
[1758442712593,0.39608,115730.0,115720.0,2.00978071]
[1758442714700,0.39608,115730.0,115720.0,0.50978071]
[1758442715203,0.39608,115730.0,115720.0,2.00978071]
[1758442718103,0.4824282,115730.0,115720.0,2.00978071]
[1758442719599,0.1216282,115730.0,115720.0,2.00978071]
[1758442719796,0.4824282,115730.0,115720.0,2.00978071]
[1758442719995,0.4824282,115730.0,115720.0,1.90099964]
[1758442725197,0.4824282,115730.0,115720.0,2.05635774]
[1758442728308,0.4824282,115730.0,115720.0,1.90099964]
[1758442737313,0.4824282,115730.0,115720.0,1.97000214]
[1758442737504,0.4824282,115730.0,115720.0,2.74944214]
[1758442738019,0.4824282,115730.0,115720.0,1.68236383]
[1758442738215,0.4824282,115730.0,115720.0,1.97000214]
[1758442738918,0.4824282,115730.0,115720.0,1.81464404]
[1758442739416,0.4824282,115730.0,115720.0,1.52700573]
[1758442739613,0.4824282,115730.0,115720.0,1.81464404]
[1758442741821,0.4824282,115730.0,115720.0,1.92345258]
[1758442742725,0.4824282,115730.0,115720.0,2.00980818]
[1758442744220,0.4824282,115730.0,115720.0,1.72216987]
[1758442744420,0.4824282,115730.0,115720.0,2.00980818]
[1758442745920,0.4824282,115730.0,115720.0,1.90099964]
[1758442748234,0.4824282,115730.0,115720.0,1.81464404]
[1758442749130,0.4824282,115730.0,115720.0,1.52700573]
[1758442749331,0.4824282,115730.0,115720.0,1.81464404]
[1758442758038,0.4824282,115730.0,115720.0,1.52700573]
[1758442758239,0.4824282,115730.0,115720.0,1.90099964]
[1758442769444,0.1216282,115730.0,115720.0,1.90099964]
[1758442769750,0.4824282,115730.0,115720.0,1.90099964]
[1758442773748,0.4824282,115730.0,115720.0,1.90100125]
[1758442774149,0.4824282,115730.0,115720.0,1.93783317]
[1758442775152,0.4824282,115730.0,115720.0,0.43783317]
[1758442775653,0.4824282,115730.0,115720.0,1.93783317]
[1758442786656,0.4806082,115730.0,115720.0,1.93783317]
[1758442786858,0.4781582,115730.0,115720.0,1.93783317]
[1758442787356,0.3608,115730.0,115720.0,1.93783317]
[1758442787551,0.37363,115730.0,115720.0,1.93783317]
[1758442787953,0.4599782,115730.0,115720.0,1.93783317]
[1758442790662,0.4286982,115730.0,115720.0,1.93783317]
[1758442791564,0.4283582,115730.0,115720.0,1.93783317]
[1758442793463,0.4268982,115730.0,115720.0,1.93783317]
[1758442793662,0.4398682,115730.0,115720.0,1.93783317]
[1758442794173,0.4393682,115730.0,115720.0,1.93783317]
[1758442794465,0.4385082,115730.0,115720.0,1.93783317]
[1758442794658,0.4385082,115730.0,115720.0,1.85147757]
[1758442794858,0.4383382,115730.0,115720.0,1.85147757]
[1758442795460,0.4381782,115730.0,115720.0,1.85147757]
[1758442796361,0.01338,115730.0,115720.0,1.85147757]
[1758442796564,0.0975682,115730.0,115720.0,1.85147757]
[1758442798567,0.0975682,115730.0,115720.0,1.93783317]
[1758442798771,0.0970382,115730.0,115720.0,1.93783317]
[1758442799272,0.0970382,115730.0,115720.0,1.61336133]
[1758442799273,0.0963082,115730.0,115720.0,1.61336133]
[1758442799462,0.0963082,115730.0,115720.0,1.93783317]
[1758442800664,0.0961682,115730.0,115720.0,1.52700573]
[1758442800864,0.4569682,115730.0,115720.0,1.85147757]
[1758442801557,0.4794282,115730.0,115720.0,0.46000317]
[1758442801759,0.8981482,115730.0,115720.0,0.46000317]
[1758442801955,0.1186282,115730.0,115720.0,0.46000317]
[1758442802163,1.30818932,115740.0,115720.0,0.47302317]
[1758442802367,1.33064932,115740.0,115730.0,0.34664184]
[1758442802563,1.07727932,115740.0,115730.0,0.35966184]
[1758442803868,1.07827932,115740.0,115730.0,0.35966184]
[1758442804570,1.07827932,115740.0,115730.0,0.36966184]
[1758442806864,1.07827932,115740.0,115730.0,0.04519]
[1758442807064,1.07827932,115740.0,115730.0,0.36966184]
[1758442807568,1.14875353,115740.0,115730.0,0.36966184]
[1758442808572,1.14875353,115740.0,115730.0,0.47845101]
[1758442809373,1.14875353,115740.0,115730.0,0.36966184]
[1758442814076,1.16156353,115740.0,115730.0,0.36966184]
[1758442815279,1.16156353,115740.0,115730.0,0.47845101]
[1758442818780,1.16160353,115740.0,115730.0,0.47845101]
[1758442819085,1.18157199,115740.0,115730.0,0.47845101]
[1758442819483,0.40197199,115740.0,115730.0,0.47845101]
[1758442819787,1.18153199,115740.0,115730.0,0.47845101]
[1758442819980,1.18153199,115740.0,115730.0,0.36966184]
[1758442821476,1.18153199,115740.0,115730.0,0.47845101]
[1758442823489,1.18153199,115740.0,115730.0,0.46543101]
[1758442826189,1.18153199,115740.0,115730.0,0.14095917]
[1758442826389,1.18153199,115740.0,115730.0,0.46543101]
[1758442828090,1.18153199,115740.0,115730.0,0.14095917]
[1758442828297,1.18153199,115740.0,115730.0,0.46543101]
[1758442833192,1.18153199,115740.0,115730.0,0.35664184]
[1758442833896,1.18153199,115740.0,115730.0,0.35666353]
[1758442834094,1.46919105,115740.0,115730.0,0.31982906]
[1758442835801,1.46919105,115740.0,115730.0,0.42863587]
[1758442836202,0.12671267,115740.0,115730.0,0.51498407]
[1758442836404,0.96045337,115740.0,115730.0,0.33242906]
[1758442836805,0.94288337,115740.0,115730.0,0.33242906]
[1758442837006,0.96402337,115740.0,115730.0,0.33242906]
[1758442838906,0.90889337,115740.0,115730.0,0.33242906]
[1758442839407,0.89987337,115740.0,115730.0,0.33242906]
[1758442839906,0.89961337,115740.0,115730.0,0.33242906]
[1758442840111,0.89839337,115740.0,115730.0,0.33242906]
[1758442841009,0.89835337,115740.0,115730.0,0.33242906]
[1758442841409,0.89662337,115740.0,115730.0,0.33242906]
[1758442841807,0.18663412,115740.0,115730.0,0.33242906]
[1758442842111,0.94778412,115740.0,115730.0,0.33242906]
[1758442842411,0.96761815,115740.0,115730.0,0.33242906]
[1758442842613,0.18801815,115740.0,115730.0,0.33242906]
[1758442842813,0.18801815,115740.0,115730.0,0.44123587]
[1758442843008,0.96757815,115740.0,115730.0,0.44123587]
[1758442843919,0.96719815,115740.0,115730.0,0.44123587]
[1758442844615,0.96696815,115740.0,115730.0,0.44123587]
[1758442844816,0.96696815,115740.0,115730.0,0.33242906]
[1758442845513,0.96683815,115740.0,115730.0,0.33242906]
[1758442846418,0.96467815,115740.0,115730.0,0.33242906]
[1758442846817,0.96446815,115740.0,115730.0,0.33242906]
[1758442847520,0.96156815,115740.0,115730.0,0.33242906]
[1758442847817,0.96066815,115740.0,115730.0,0.33242906]
[1758442849310,0.95922815,115740.0,115730.0,0.33242906]
[1758442849618,0.95749815,115740.0,115730.0,0.33242906]
[1758442850216,0.17793815,115740.0,115730.0,0.33242906]
[1758442850517,0.92515815,115740.0,115730.0,0.33242906]
[1758442851219,0.89042478,115740.0,115730.0,0.33242906]
[1758442851423,0.97676548,115740.0,115730.0,0.33242906]
[1758442852120,0.97604548,115740.0,115730.0,0.33242906]
[1758442852620,0.97401548,115740.0,115730.0,0.33242906]
[1758442853426,0.97390548,115740.0,115730.0,0.04477]
[1758442853721,0.97390548,115740.0,115730.0,0.33242906]
[1758442854524,0.97303548,115740.0,115730.0,0.33242906]
[1758442855025,0.19359548,115740.0,115730.0,0.43420607]
[1758442855223,0.97307548,115740.0,115730.0,0.43820607]
[1758442855427,0.91963548,115740.0,115730.0,0.43820607]
[1758442856324,0.91963548,115740.0,115730.0,0.43520607]
[1758442856632,0.91963548,115740.0,115730.0,0.43620607]
[1758442857131,0.91923548,115740.0,115730.0,0.43620607]
[1758442858131,0.91911548,115740.0,115730.0,0.43620607]
[1758442859830,0.91898548,115740.0,115730.0,0.43620607]
[1758442860929,0.91833548,115740.0,115730.0,0.43620607]
[1758442861736,0.91822548,115740.0,115730.0,0.43620607]
[1758442862530,0.90914548,115740.0,115730.0,0.43620607]
[1758442862732,0.90914548,115740.0,115730.0,0.32742906]
[1758442865334,0.90898548,115740.0,115730.0,0.32742906]
[1758442866033,0.90774548,115740.0,115730.0,0.32742906]
[1758442866431,0.90757548,115740.0,115730.0,0.32742906]
[1758442866733,1.26837548,115740.0,115730.0,0.43623173]
[1758442867126,1.26705548,115740.0,115730.0,0.43623173]
[1758442867730,1.25644353,115740.0,115730.0,0.43623173]
[1758442868132,1.25391353,115740.0,115730.0,0.43623173]
[1758442868432,1.25372353,115740.0,115730.0,0.43623173]
[1758442868734,1.25360353,115740.0,115730.0,0.43623173]
[1758442869129,1.25274353,115740.0,115730.0,0.43623173]
[1758442869536,1.25187353,115740.0,115730.0,0.43623173]
[1758442870038,1.25187353,115740.0,115730.0,0.14557267]
[1758442870238,1.15835353,115740.0,115730.0,0.43223173]
[1758442870737,1.15825353,115740.0,115730.0,0.43223173]
[1758442870936,1.31494398,115740.0,115730.0,0.43223173]
[1758442871339,1.31494398,115740.0,115730.0,0.14457267]
[1758442871638,1.60260304,115740.0,115730.0,0.43223173]
[1758442873339,1.31494398,115740.0,115730.0,0.43223173]
[1758442873639,1.29947398,115740.0,115730.0,0.32342906]
[1758442873937,1.58713304,115740.0,115730.0,0.43223173]
[1758442874240,1.57159304,115740.0,115730.0,0.43223173]
[1758442874638,1.56990304,115740.0,115730.0,0.43223173]
[1758442875241,1.28224398,115740.0,115730.0,0.43223173]
[1758442875439,1.56990304,115740.0,115730.0,0.43223173]
[1758442876438,1.56990304,115740.0,115730.0,0.32342906]
[1758442876941,1.56990304,115740.0,115730.0,0.43223173]
[1758442877431,1.56861304,115740.0,115730.0,0.43223173]
[1758442878140,1.56861304,115740.0,115730.0,0.43221949]
[1758442878340,1.56690304,115740.0,115730.0,0.43221949]
[1758442878841,1.56676304,115740.0,115730.0,0.43221949]
[1758442879142,1.56676304,115740.0,115730.0,0.32342906]
[1758442879542,1.56237304,115740.0,115730.0,0.32342906]
[1758442880436,1.56197304,115740.0,115730.0,0.32342906]
[1758442881243,0.84693756,115740.0,115730.0,0.32342906]
[1758442881442,1.62641756,115740.0,115730.0,0.32342906]
[1758442882644,1.62450756,115740.0,115730.0,0.32342906]
[1758442883146,1.62316756,115740.0,115730.0,0.32342906]
[1758442884544,1.26236756,115740.0,115730.0,0.32342906]
[1758442884744,1.62316756,115740.0,115730.0,0.32342906]
[1758442885347,1.61471756,115740.0,115730.0,0.32342906]
[1758442886548,1.25391756,115740.0,115730.0,0.32342906]
[1758442886741,1.3180085,115740.0,115730.0,0.32342906]
[1758442886942,1.60566756,115740.0,115730.0,0.32342906]
[1758442887144,1.3180085,115740.0,115730.0,0.32342906]
[1758442887448,1.3178585,115740.0,115730.0,0.32342906]
[1758442887639,0.9570585,115740.0,115730.0,0.32342906]
[1758442887843,1.3166685,115740.0,115730.0,0.32342906]
[1758442888043,1.3396085,115740.0,115730.0,0.43221951]
[1758442888443,1.33237567,115740.0,115730.0,0.43221951]
[1758442889849,1.32336567,115740.0,115730.0,0.43221951]
[1758442890043,1.32139567,115740.0,115730.0,0.43221951]
[1758442890451,1.32129567,115740.0,115730.0,0.43221951]
[1758442891152,1.32129567,115740.0,115730.0,0.32342906]
[1758442891754,1.32115567,115740.0,115730.0,0.32342906]
[1758442892554,1.32045567,115740.0,115730.0,0.32342906]
[1758442892743,1.32041567,115740.0,115730.0,0.32342906]
[1758442893049,1.31868567,115740.0,115730.0,0.32342906]
[1758442894953,1.31026567,115740.0,115730.0,0.43222831]
[1758442895758,1.31026567,115740.0,115730.0,0.43222012]
[1758442895958,1.26941787,115740.0,115730.0,0.43222012]
[1758442896258,1.26941787,115740.0,115730.0,0.46905362]
[1758442896954,1.26941787,115740.0,115730.0,0.36025437]
[1758442897153,1.26941787,115740.0,115730.0,0.46906065]
[1758442898757,1.26941787,115740.0,115730.0,0.36025437]
[1758442899159,1.26941787,115740.0,115730.0,0.46906074]
[1758442900252,1.26941787,115740.0,115730.0,0.36025437]
[1758442901061,1.26941787,115740.0,115730.0,0.46906221]
[1758442914772,1.26941787,115740.0,115730.0,0.14457784]
[1758442915272,1.26941787,115740.0,115730.0,0.46906221]
[1758442921766,1.26941787,115740.0,115730.0,0.36025437]
[1758442929690,1.26941787,115740.0,115730.0,0.46907414]
[1758442931697,1.2495207,115740.0,115730.0,0.46907414]
[1758442931898,1.2495207,115740.0,115730.0,0.48645481]
[1758442932994,1.2495207,115740.0,115730.0,0.16197044]
[1758442933200,1.2495207,115740.0,115730.0,0.48645481]
[1758442934001,1.2495207,115740.0,115730.0,0.37763504]
[1758442934301,1.3173978,115740.0,115730.0,0.37763504]
[1758442940411,1.3173978,115740.0,115730.0,0.48645481]
[1758442942104,1.3173978,115740.0,115730.0,0.37763504]
[1758442943208,1.3173978,115740.0,115730.0,0.48644729]
[1758442948019,1.3173978,115740.0,115730.0,0.16196292]
[1758442948218,1.3173978,115740.0,115730.0,0.48644729]
[1758442950015,1.3173978,115740.0,115730.0,0.37763504]
[1758442950416,1.3173978,115740.0,115730.0,0.48645339]
[1758442957225,1.3173978,115740.0,115730.0,0.16196902]
[1758442957426,1.3173978,115740.0,115730.0,0.48645339]
[1758442957726,1.3173978,115740.0,115730.0,0.48646117]
[1758442958124,1.3173978,115740.0,115730.0,0.44962687]
[1758442958624,1.3173978,115740.0,115730.0,0.34080852]
[1758442962123,1.60505565,115740.0,115730.0,0.01838067]
[1758442962336,1.60505565,115740.0,115730.0,0.28865785]
[1758442962337,1.3173978,115740.0,115730.0,0.28865785]
[1758442962530,1.60505565,115740.0,115730.0,0.28865785]
[1758442965424,1.60505565,115740.0,115730.0,0.31015785]
[1758442968834,1.60505565,115740.0,115730.0,0.4189762]
[1758442970735,1.60505565,115740.0,115730.0,0.31015785]
[1758442971539,1.60505565,115740.0,115730.0,0.4189762]
[1758442972944,1.60505565,115740.0,115730.0,0.4316462]
[1758442977240,1.60505565,115740.0,115730.0,0.32282785]
[1758442977638,1.60505565,115740.0,115730.0,0.4316462]
[1758442978438,0.82561565,115740.0,115730.0,0.4316462]
[1758442978641,1.60493565,115740.0,115730.0,0.4316462]
[1758442978943,1.60493565,115740.0,115730.0,0.32282785]
[1758442980434,1.60493565,115740.0,115730.0,0.31015785]
[1758442980639,1.60493565,115740.0,115730.0,0.28865785]
[1758442980833,1.60493565,115740.0,115730.0,0.3974762]
[1758442981940,1.60493565,115740.0,115730.0,0.4202962]
[1758442982237,1.60493565,115740.0,115730.0,0.4335362]
[1758442983337,0.82561565,115740.0,115730.0,0.4335362]
[1758442983640,1.60493565,115740.0,115730.0,0.4335362]
[1758442991147,1.60493565,115740.0,115730.0,0.14587835]
[1758442991343,1.60493565,115740.0,115730.0,0.4335362]
[1758442992050,1.60493565,115740.0,115730.0,0.3974762]
[1758442993350,1.60493565,115740.0,115730.0,0.4204262]
[1758442993648,1.60493565,115740.0,115730.0,0.3974762]
[1758442995150,1.60493565,115740.0,115730.0,0.4204262]
[1758442995350,1.60493565,115740.0,115730.0,0.4332162]
[1758442996051,1.60493565,115740.0,115730.0,0.4204262]
[1758442996251,1.60493565,115740.0,115730.0,0.28865785]
[1758442997044,1.60493565,115740.0,115730.0,0.31160785]
[1758442997850,1.60493565,115740.0,115730.0,0.28865785]
[1758442998243,1.60493565,115740.0,115730.0,0.3974762]
[1758442999154,1.60493565,115740.0,115730.0,0.10981835]
[1758442999345,1.60493565,115740.0,115730.0,0.3974762]
[1758443000953,1.60493565,115740.0,115730.0,0.10981835]
[1758443001252,1.60493565,115740.0,115730.0,0.3974762]
[1758443003460,1.60493565,115740.0,115730.0,0.4204262]
[1758443006560,1.60493565,115740.0,115730.0,0.13276835]
[1758443006766,1.60493565,115740.0,115730.0,0.4204262]
[1758443010166,1.3172778,115740.0,115730.0,0.13276835]
[1758443010355,1.60493565,115740.0,115730.0,0.4204262]
[1758443017570,1.60493565,115740.0,115730.0,0.13276835]
[1758443017875,1.60493565,115740.0,115730.0,0.4204262]
[1758443019770,0.82564875,115740.0,115730.0,0.5068075]
[1758443019974,1.60488875,115740.0,115730.0,0.5068075]
[1758443020179,1.3171978,115740.0,115730.0,0.13276835]
[1758443028087,1.3171978,115740.0,115730.0,0.02395]